bitfinex-derivatives/quotes_ETHF0:USTF0_20240922
["timestamp","ask_amount","ask_price","bid_price","bid_amount"]
[1727047097955,2.12,2576.1,2575.8,0.4079]
[1727047098165,0.38815,2576.2,2575.9,0.38819]
[1727047098369,0.38815,2576.2,2576.0,0.4244]
[1727047098570,0.38816,2576.1,2576.0,0.4244]
[1727047098961,1.01382773,2576.4,2576.0,4.306]
[1727047099165,1.01382773,2576.5,2576.2,5.3278]
[1727047099370,2.12,2577.1,2576.6,0.38808]
[1727047099371,1.01382773,2577.0,2576.6,0.38808]
[1727047099669,1.90876159,2577.1,2576.7,0.8294]
[1727047099670,1.40184773,2577.1,2576.7,0.8294]
[1727047100463,3.13382773,2577.1,2576.7,0.8294]
[1727047100663,0.38802,2577.0,2576.7,0.8294]
[1727047100862,3.52184773,2577.1,2576.7,0.8294]
[1727047101571,0.38803,2577.0,2576.7,0.8294]
[1727047101761,0.38804,2576.9,2576.7,0.8294]
[1727047101967,0.38808,2576.7,2576.3,0.4309]
[1727047102163,0.38808,2576.7,2576.4,0.8049]
[1727047102867,2.50806,2576.8,2576.4,0.8049]
[1727047103268,0.38807,2576.7,2576.4,0.8049]
[1727047105072,3.13382773,2576.8,2576.4,0.8049]
[1727047105261,1.40186773,2576.9,2576.5,0.3881]
[1727047105863,1.01382773,2576.9,2576.6,0.38808]
[1727047106068,1.01382773,2577.0,2576.7,3.2078]
[1727047106380,2.41564546,2577.3,2576.8,0.79445]
[1727047106381,1.01382773,2577.1,2576.8,0.79445]
[1727047106671,1.90873159,2577.3,2576.8,0.79445]
[1727047106672,1.40181773,2577.2,2576.8,0.79445]
[1727047106865,1.40181773,2577.2,2576.9,0.80083]
[1727047106866,1.01382773,2577.2,2576.9,0.80083]
[1727047107268,1.01382773,2577.2,2577.0,0.412]
[1727047107665,1.40182773,2577.2,2577.0,0.412]
[1727047107870,1.01382773,2577.2,2577.0,0.412]
[1727047108063,1.01382773,2577.3,2577.0,0.80002]
[1727047108371,1.40179773,2577.4,2577.0,0.80002]
[1727047108780,1.01382773,2577.4,2577.0,0.412]
[1727047109187,1.01382773,2577.4,2577.0,0.80002]
[1727047109188,1.40179773,2577.4,2577.0,0.80002]
[1727047109681,0.38798,2577.3,2577.0,0.412]
[1727047109986,2.50798,2577.3,2577.0,0.412]
[1727047110182,2.50798,2577.3,2577.0,0.80002]
[1727047110686,2.50798,2577.3,2577.0,0.412]
[1727047111184,0.388,2577.2,2577.0,0.412]
[1727047112381,2.50801,2577.1,2577.0,0.412]
[1727047112578,0.38802,2577.0,2576.9,0.4128]
[1727047112779,2.50801,2577.1,2576.9,0.4128]
[1727047113592,2.12,2577.1,2576.9,0.4128]
[1727047113886,0.38801,2577.1,2576.9,0.4128]
[1727047114481,6.34162773,2577.5,2576.9,0.4128]
[1727047114782,2.12,2577.0,2576.6,0.4114]
[1727047114986,0.38806,2576.8,2576.6,0.4114]
[1727047115987,2.50803,2577.0,2576.7,0.38807]
[1727047116194,0.38801,2577.1,2576.8,0.38805]
[1727047116383,2.12,2577.2,2576.8,0.38805]
[1727047116384,2.508,2577.2,2576.8,0.38805]
[1727047116782,0.38801,2577.1,2576.8,0.38805]
[1727047117183,2.12,2577.2,2576.9,0.38804]
[1727047117382,2.508,2577.2,2576.9,0.38804]
[1727047119693,0.38801,2577.1,2576.8,0.38804]
[1727047120088,0.38801,2577.1,2576.7,0.38807]
[1727047120089,2.12,2577.0,2576.7,0.38807]
[1727047120292,2.12,2577.0,2576.6,0.4114]
[1727047120293,0.3881,2576.5,2576.4,3.2078]
[1727047120590,3.47835,2576.5,2576.4,3.2078]
[1727047120794,3.47835,2576.5,2576.0,3.2078]
[1727047120795,0.38816,2576.1,2576.0,3.2078]
[1727047122983,2.12,2576.2,2576.0,3.2078]
[1727047123183,0.38813,2576.3,2576.0,3.2078]
[1727047123789,0.38813,2576.3,2576.0,3.6313]
[1727047123998,0.38813,2576.3,2576.0,0.4235]
[1727047124196,2.12,2576.2,2575.6,4.041]
[1727047124496,2.12,2576.2,2575.6,4.85273]
[1727047125097,2.12,2576.2,2575.7,0.38822]
[1727047125294,2.50815,2576.2,2575.7,0.38822]
[1727047126092,0.38816,2576.1,2575.7,0.38822]
[1727047126290,0.38816,2576.1,2575.6,4.85273]
[1727047127413,1.52074159,2577.5,2576.0,3.2078]
[1727047127599,1.52074159,2577.5,2576.9,3.2078]
[1727047127600,1.64028421,2577.3,2576.9,3.2078]
[1727047127800,1.64028421,2577.3,2577.0,2.5354]
[1727047127996,1.64028421,2577.3,2577.0,0.4154]
[1727047128301,2.02826421,2577.3,2577.0,0.4154]
[1727047128502,1.64028421,2577.1,2577.0,0.4154]
[1727047128691,2.02829421,2577.1,2577.0,0.4154]
[1727047129003,0.3879,2577.9,2577.4,0.38795]
[1727047129197,1.64028421,2577.7,2577.5,0.38795]
[1727047129396,1.64028421,2577.5,2577.3,0.38797]
[1727047129696,1.64028421,2577.4,2577.3,0.38797]
[1727047130196,1.64028421,2577.4,2577.1,5.7158]
[1727047130397,2.12,2577.7,2577.1,3.2078]
[1727047130697,1.64028421,2577.3,2577.2,0.38799]
[1727047130886,3.59571,2577.8,2577.3,0.38797]
[1727047131092,3.59571,2577.8,2577.0,2.5354]
[1727047131093,2.02827421,2577.3,2577.0,0.4154]
[1727047131305,1.64028421,2577.1,2577.0,0.4154]
[1727047131903,1.64028421,2577.1,2576.7,0.4228]
[1727047132104,1.64028421,2576.8,2576.6,0.78848]
[1727047132298,1.64028421,2576.7,2576.6,0.4004]
[1727047132501,1.64028421,2576.7,2576.6,0.78848]
[1727047134202,0.38803,2577.0,2576.7,0.38807]
[1727047134505,1.64028421,2576.8,2576.7,0.38807]
[1727047134808,2.02834421,2576.8,2576.5,0.80569]
[1727047135009,1.64028421,2576.7,2576.5,0.80569]
[1727047135800,1.64028421,2576.7,2576.6,0.38808]
[1727047137307,1.64028421,2576.7,2576.2,0.4128]
[1727047137510,2.02841421,2576.3,2576.0,0.38817]
[1727047137701,1.64028421,2576.0,2575.9,0.4202]
[1727047138010,1.64028421,2576.0,2575.9,0.80839]
[1727047138306,1.64028421,2576.0,2575.9,0.4202]
[1727047138605,1.64028421,2576.0,2575.8,0.4075]
[1727047138813,1.64028421,2575.9,2575.8,0.4075]
[1727047139105,2.02847421,2575.9,2575.8,0.4075]
[1727047139811,1.64028421,2575.9,2575.8,0.4075]
[1727047140311,1.64028421,2575.9,2575.8,0.7957]
[1727047140507,1.64028421,2575.9,2575.8,0.4075]
[1727047141102,1.64028421,2575.9,2575.8,0.7957]
[1727047141304,1.64028421,2575.9,2575.8,0.4075]
[1727047141504,1.64028421,2575.9,2575.8,0.7957]
[1727047143106,1.64028421,2575.9,2575.8,4.0035]
[1727047143802,1.64028421,2575.9,2575.8,0.7957]
[1727047144002,1.64028421,2575.9,2575.8,4.0035]
[1727047144210,4.72854159,2576.5,2575.8,13.4977]
[1727047144409,1.64028421,2576.4,2576.3,0.38813]
[1727047144911,1.64028421,2576.4,2576.2,0.3971]
[1727047145108,1.92094159,2576.8,2576.2,0.3971]
[1727047145109,1.64028421,2576.3,2576.2,0.3971]
[1727047145615,1.64028421,2576.3,2576.1,0.38815]
[1727047145910,1.64028421,2576.2,2576.1,0.38815]
[1727047146112,1.64028421,2576.5,2576.4,0.38811]
[1727047146410,0.38803,2577.0,2576.7,0.38806]
[1727047146615,1.64028421,2576.9,2576.8,0.38805]
[1727047150510,1.81104159,2577.5,2577.1,0.388]
[1727047150724,1.90870159,2577.5,2577.1,0.388]
[1727047151008,1.64028421,2577.2,2577.1,0.388]
[1727047152010,1.64028421,2577.2,2577.1,3.5958]
[1727047152216,4.02868159,2577.6,2577.2,0.38799]
[1727047152413,1.64028421,2577.3,2577.2,0.38799]
[1727047153003,1.52074159,2578.0,2577.2,9.88]
[1727047153207,1.52074159,2578.1,2577.7,0.38791]
[1727047153517,1.64028421,2577.8,2577.7,0.38791]
[1727047153903,1.95984159,2578.2,2577.7,3.8792]
[1727047154105,1.95984159,2578.2,2577.8,0.3879]
[1727047154106,1.64028421,2577.9,2577.8,0.3879]
[1727047155511,3.64074159,2578.5,2577.8,0.3879]
[1727047155512,1.52074159,2578.5,2577.8,5.9992]
[1727047155714,1.64028421,2578.3,2578.2,0.38784]
[1727047155907,6.47461159,2578.8,2578.2,0.38784]
[1727047155908,1.64028421,2578.5,2578.2,3.6071]
[1727047156114,1.64028421,2578.5,2578.4,0.38781]
[1727047156505,1.64028421,2578.5,2578.2,3.6071]
[1727047156710,1.64028421,2578.3,2578.1,0.38785]
[1727047157008,1.64028421,2578.2,2578.1,0.38785]
[1727047159310,1.64028421,2578.2,2578.0,0.4136]
[1727047159509,5.3278,2578.6,2578.0,0.4136]
[1727047159510,1.64028421,2578.1,2578.0,0.80147]
[1727047161411,0.38779,2578.6,2578.0,4.68067]
[1727047161615,1.64028421,2578.4,2578.3,0.38783]
[1727047162012,1.64028421,2578.4,2578.2,3.2078]
[1727047162013,1.64028421,2578.4,2578.2,3.59564]
[1727047164121,1.64028421,2578.3,2578.0,0.4136]
[1727047164320,1.64028421,2578.1,2578.0,0.4136]
[1727047165117,1.64028421,2578.1,2577.9,0.38788]
[1727047165422,1.64028421,2578.0,2577.9,0.38788]
[1727047168337,4.127,2578.9,2577.9,13.087]
[1727047168622,1.64028421,2578.7,2578.6,0.38778]
[1727047168821,1.64028421,2578.7,2578.5,0.808]
[1727047169216,1.64028421,2578.7,2578.5,1.19579]
[1727047169419,1.64028421,2578.7,2578.6,0.38778]
[1727047174828,4.821,2579.5,2578.6,11.9976]
[1727047175031,1.64028421,2579.0,2578.9,3.59554]
[1727047176131,0.38767,2579.4,2579.0,0.38771]
[1727047176334,1.64028421,2579.1,2578.6,2.12]
[1727047176633,1.64028421,2579.1,2578.9,0.38773]
[1727047176835,1.64028421,2579.1,2578.8,3.59554]
[1727047177038,1.64028421,2579.1,2578.9,0.38774]
[1727047177331,1.64028421,2579.1,2578.8,3.59554]
[1727047177721,1.64028421,2578.9,2578.8,3.2078]
[1727047177924,1.64028421,2578.9,2578.5,0.4007]
[1727047178127,1.64028421,2578.6,2578.5,0.4007]
[1727047178329,1.64028421,2578.6,2578.5,0.7885]
[1727047178728,1.64028421,2578.6,2578.5,0.4007]
[1727047179438,1.64028421,2578.6,2578.5,0.7885]
[1727047180943,1.64028421,2578.6,2578.5,0.4007]
[1727047181434,1.64028421,2578.6,2578.2,2.9508]
[1727047181435,1.64028421,2578.6,2578.2,0.8308]
[1727047181636,1.64028421,2578.3,2578.2,0.8308]
[1727047181934,1.64028421,2578.3,2578.2,1.21864]
[1727047182335,1.64028421,2578.3,2578.2,3.33864]
[1727047186338,0.8441,2579.1,2578.5,0.38779]
[1727047186538,0.38776,2578.8,2578.5,2.5078]
[1727047186741,1.64028421,2578.6,2578.5,2.5078]
[1727047188941,1.64028421,2578.6,2578.5,2.13]
[1727047189340,1.64028421,2578.6,2578.5,0.01]
[1727047189536,1.64028421,2578.6,2578.5,0.3978]
[1727047189740,1.64028421,2578.6,2578.5,0.01]
[1727047190128,1.64028421,2578.6,2578.5,0.3978]
[1727047191538,0.4402,2579.1,2578.5,6.0084]
[1727047191742,4.127,2579.2,2578.8,2.12]
[1727047191943,0.38767,2579.4,2579.0,0.38772]
[1727047192142,0.4139,2579.5,2578.9,0.4302]
[1727047192143,0.38768,2579.3,2578.9,0.4302]
[1727047192344,1.64028421,2579.0,2578.9,0.81793]
[1727047192639,1.64028421,2579.1,2579.0,0.38772]
[1727047193233,1.64028421,2579.1,2578.9,0.81793]
[1727047193945,1.64028421,2579.0,2578.9,0.81793]
[1727047194145,1.64028421,2579.1,2578.9,0.4302]
[1727047194345,1.64028421,2579.0,2578.9,0.81793]
[1727047194542,1.64028421,2579.0,2578.9,0.4302]
[1727047195050,1.64028421,2579.0,2578.7,3.59556]
[1727047195252,1.64028421,2578.8,2578.7,3.59556]
[1727047195639,0.38769,2579.3,2578.7,7.0854]
[1727047195843,1.38306,2579.5,2578.8,2.12]
[1727047195844,1.64028421,2579.0,2578.8,2.12]
[1727047196044,1.64028421,2579.0,2578.9,0.38774]
[1727047196248,1.64028421,2579.0,2578.9,1.20104]
[1727047197147,1.64028421,2579.0,2578.9,0.8133]
[1727047197342,1.64028421,2579.0,2578.9,1.20104]
[1727047198445,0.38769,2579.3,2578.9,5.07864]
[1727047198643,0.38769,2579.3,2578.9,1.20104]
[1727047198644,1.64028421,2579.1,2578.9,1.20104]
[1727047199544,0.38769,2579.3,2578.9,1.20104]
[1727047199752,1.64028421,2579.0,2578.9,1.20104]
[1727047200251,0.38769,2579.3,2578.9,5.07864]
[1727047200555,1.64028421,2579.1,2578.9,1.20104]
[1727047200851,1.64028421,2579.1,2578.9,0.8133]
[1727047201952,1.64028421,2579.1,2578.9,1.20103]
[1727047202346,1.64028421,2579.1,2579.0,5.71552]
[1727047202948,1.52074159,2579.5,2579.3,0.38768]
[1727047203251,1.52074159,2579.6,2579.3,2.12]
[1727047203454,1.93934159,2579.8,2579.5,0.38764]
[1727047203650,1.93934159,2579.8,2579.4,1.2698]
[1727047203845,1.64028421,2579.5,2579.4,1.65746]
[1727047204753,2.32694159,2579.8,2579.5,0.38765]
[1727047204754,1.52074159,2579.8,2579.5,0.38765]
[1727047204961,1.64028421,2579.6,2579.5,0.38765]
[1727047205258,3.1610258,2579.8,2579.5,2.50765]
[1727047205560,1.64028421,2579.8,2579.6,0.38763]
[1727047206154,1.64028421,2579.8,2579.7,2.12]
[1727047206347,1.52074159,2580.2,2579.8,0.38759]
[1727047206551,0.38756,2580.1,2579.7,2.12]
[1727047206847,0.38759,2579.9,2579.5,5.3278]
[1727047207056,0.4142,2579.8,2579.5,5.3278]
[1727047207658,0.4142,2579.8,2579.2,3.2078]
[1727047207849,0.38768,2579.4,2578.9,6.71313784]
[1727047208043,2.12,2579.6,2578.9,6.71313784]
[1727047208044,0.81758,2579.3,2578.9,5.3278]
[1727047208253,0.4299,2579.3,2578.9,5.71553]
[1727047208848,0.4299,2579.3,2579.0,0.38772]
[1727047209053,0.4299,2579.3,2579.1,2.12]
[1727047209253,0.4299,2579.3,2579.1,5.9976]
[1727047209454,1.52074159,2579.7,2579.1,5.9968]
[1727047209658,2.33827159,2579.7,2579.4,2.12]
[1727047209957,0.81753,2579.7,2579.4,2.12]
[1727047210153,1.52074159,2579.8,2579.5,0.38764]
[1727047210357,1.52074159,2579.8,2579.4,2.12]
[1727047210551,1.95064159,2579.9,2579.4,2.12]
[1727047211047,0.38761,2579.8,2579.4,2.12]
[1727047211649,0.38761,2579.8,2579.4,2.50766]
[1727047212552,0.4299,2579.9,2579.5,0.38763]
[1727047212961,0.4299,2579.9,2579.5,1.21353]
[1727047213163,0.81749,2579.9,2579.5,1.21353]
[1727047213455,0.81749,2579.9,2579.5,4.42133]
[1727047213659,0.81749,2579.9,2579.5,4.0337]
[1727047213860,0.38761,2579.8,2579.5,4.0337]
[1727047214056,0.8175,2579.9,2579.5,4.0337]
[1727047214556,0.3876,2579.8,2579.5,4.0337]
[1727047215953,0.81749,2579.9,2579.5,4.42134]
[1727047216960,0.4299,2579.9,2579.6,2.5419]
[1727047217145,1.92404159,2580.0,2579.8,5.3278]
[1727047217146,1.52074159,2580.0,2579.8,5.3278]
[1727047217351,1.52074159,2580.0,2579.9,0.38759]
[1727047217577,1.52074159,2580.0,2579.9,4.26359]
[1727047219261,2.02765546,2580.2,2580.1,0.38756]
[1727047219557,2.02765546,2580.2,2580.1,5.71536]
[1727047219760,2.02765546,2580.2,2580.1,9.59136]
[1727047220154,2.53456933,2580.3,2580.2,0.38754]
[1727047220360,3.04148319,2580.7,2580.6,0.38748]
[1727047220560,3.04148319,2580.7,2580.6,2.12]
[1727047222365,3.86465319,2580.7,2580.4,2.12]
[1727047222568,0.8201,2580.6,2580.4,2.12]
[1727047224066,0.3875,2580.5,2580.2,3.2078]
[1727047224963,0.8201,2580.6,2580.2,3.59534]
[1727047225266,0.8201,2580.6,2580.4,2.12]
[1727047225959,1.20759,2580.6,2580.4,2.12]
[1727047227266,0.3875,2580.5,2580.2,5.71534]
[1727047227462,0.8201,2580.6,2580.2,5.3278]
[1727047227769,0.38751,2580.5,2580.2,5.71534]
[1727047227958,0.8201,2580.6,2580.4,2.12]
[1727047228356,0.427,2580.6,2580.5,3.5953]
[1727047228860,0.427,2580.6,2580.5,7.4705]
[1727047230162,0.4083,2581.1,2580.5,13.083]
[1727047230367,0.4083,2581.1,2581.0,2.12]
[1727047230759,0.4083,2581.1,2581.0,2.50742]
[1727047231167,0.8155,2581.2,2581.0,2.50742]
[1727047232557,0.3995,2581.2,2581.1,0.38741]
[1727047232759,0.3995,2581.2,2581.1,4.26181]
[1727047233067,0.38736,2581.4,2581.1,3.8744]
[1727047233268,0.38737,2581.4,2581.0,2.50742]
[1727047233468,0.38739,2581.2,2581.0,2.12]
[1727047233666,0.38739,2581.3,2581.0,2.12]
[1727047234366,0.38737,2581.4,2581.0,2.50742]
[1727047234568,1.63905,2581.5,2581.1,0.38741]
[1727047234770,1.63905,2581.5,2581.0,2.12]
[1727047234771,0.38736,2581.4,2581.0,2.12]
[1727047235070,0.38754,2580.3,2580.1,3.2078]
[1727047235269,0.38753,2580.3,2580.1,3.2078]
[1727047235469,0.4264,2580.2,2580.1,3.2078]
[1727047236067,0.38759,2579.9,2579.8,3.2078]
[1727047236267,2.12,2580.0,2579.2,3.6374]
[1727047236468,0.38763,2579.7,2579.2,4.02509]
[1727047237071,0.8142,2579.8,2579.2,5.7574]
[1727047237276,0.8142,2579.8,2579.6,2.12]
[1727047237478,0.4004,2579.8,2579.6,2.12]
[1727047237774,0.78801,2579.8,2579.4,2.12]
[1727047237972,0.4004,2579.8,2579.4,2.12]
[1727047238372,0.788,2579.8,2579.4,2.12]
[1727047238569,0.4004,2579.8,2579.6,2.12]
[1727047239476,0.4004,2579.8,2579.5,3.2078]
[1727047239679,0.788,2579.8,2579.5,3.2078]
[1727047239974,0.788,2579.8,2579.4,2.12]
[1727047240974,0.788,2579.8,2579.4,2.50766]
[1727047241280,0.788,2579.8,2579.4,2.12]
[1727047241674,0.788,2579.8,2579.4,2.50766]
[1727047241873,0.4004,2579.8,2579.4,2.12]
[1727047242077,0.4004,2579.8,2579.4,2.50765]
[1727047242278,0.4004,2579.8,2579.2,3.6374]
[1727047242279,0.4004,2579.8,2579.6,2.12]
[1727047243371,0.788,2579.8,2579.6,2.12]
[1727047243577,0.4004,2579.8,2579.6,2.12]
[1727047244082,0.4138,2580.0,2579.7,4.26441]
[1727047244279,0.8458,2580.2,2579.8,5.71539]
[1727047244478,0.8458,2580.2,2579.8,5.3278]
[1727047244479,1.23335,2580.2,2579.8,5.3278]
[1727047244882,1.23335,2580.2,2579.8,5.7154]
[1727047245275,1.23335,2580.2,2579.8,5.3278]
[1727047245470,1.23335,2580.2,2579.8,5.7154]
[1727047245670,1.23335,2580.2,2579.9,0.38759]
[1727047245671,0.8458,2580.2,2579.9,0.38759]
[1727047246169,0.8458,2580.2,2579.8,5.71539]
[1727047246370,0.8458,2580.2,2579.9,0.38759]
[1727047246576,1.23335,2580.2,2579.8,5.71539]
[1727047246780,1.23334,2580.2,2579.8,5.71539]
[1727047247982,0.38756,2580.1,2579.8,5.3278]
[1727047248177,0.38756,2580.1,2579.7,0.78161]
[1727047248178,0.8458,2580.2,2579.4,5.3278]
[1727047248387,0.8458,2580.2,2579.4,5.71546]
[1727047248388,0.38761,2579.8,2579.4,5.71546]
[1727047248583,0.4058,2579.7,2579.5,0.38765]
[1727047248883,0.4058,2579.7,2579.4,5.71545]
[1727047249281,0.4343,2579.6,2579.4,5.71545]
[1727047251582,0.4343,2579.6,2579.5,0.38765]
[1727047254381,8.77345972,2580.4,2579.4,5.3278]
[1727047254583,1.01185972,2581.2,2580.6,0.38747]
[1727047254887,0.424,2581.0,2580.9,2.12]
[1727047255186,0.424,2581.0,2580.9,5.3278]
[1727047255687,0.424,2581.0,2580.6,5.3278]
[1727047256483,0.424,2581.0,2580.6,2.12]
[1727047257691,0.424,2581.0,2580.4,2.12]
[1727047257991,0.424,2581.0,2580.6,2.12]
[1727047259992,0.424,2581.0,2580.6,5.71528]
[1727047260188,0.424,2581.0,2580.6,5.3278]
[1727047260789,0.424,2581.0,2580.6,2.12]
[1727047260990,0.424,2581.0,2580.6,2.50748]
[1727047261587,0.424,2581.0,2580.7,0.38746]
[1727047261785,0.424,2581.0,2580.9,2.12]
[1727047262092,0.424,2581.0,2580.9,2.50744]
[1727047262699,0.424,2581.0,2580.9,5.71524]
[1727047264792,0.424,2581.0,2580.9,0.38744]
[1727047264993,0.424,2581.0,2580.9,3.59524]
[1727047265200,1.01185972,2581.7,2581.4,0.38735]
[1727047265397,1.01185972,2581.7,2581.6,5.3278]
[1727047265398,0.8266,2581.7,2581.6,5.3278]
[1727047266397,4.127,2582.2,2581.8,0.3873]
[1727047266593,4.127,2582.2,2581.7,2.12]
[1727047266795,0.3873,2581.9,2581.3,3.2078]
[1727047266999,0.4228,2581.8,2581.3,3.2078]
[1727047267297,0.4303,2581.7,2581.5,2.12]
[1727047269490,0.4303,2581.7,2581.5,2.50734]
[1727047269690,0.4303,2581.7,2581.5,2.12]
[1727047270607,0.4303,2581.7,2581.5,2.50734]
[1727047270894,0.4303,2581.7,2581.5,2.12]
[1727047271097,0.4303,2581.7,2581.5,2.50734]
[1727047271300,0.4303,2581.7,2581.6,0.38733]
[1727047271503,3.6086,2582.1,2581.6,3.2078]
[1727047271700,4.435,2582.1,2581.7,2.50731]
[1727047272199,1.2272,2582.1,2581.7,2.12]
[1727047272405,1.2272,2582.1,2581.7,2.50731]
[1727047272602,1.61446,2582.1,2581.7,2.12]
[1727047272899,3.8728,2582.0,2581.5,3.2078]
[1727047273100,0.96819,2582.0,2581.2,0.38738]
[1727047273295,0.96819,2582.0,2581.1,5.7225]
[1727047273296,1.2272,2582.1,2581.3,2.12]
[1727047273495,1.2272,2582.1,2581.6,2.12]
[1727047273691,0.3873,2581.8,2581.6,2.12]
[1727047273888,0.3873,2581.9,2581.6,2.12]
[1727047274303,1.2272,2582.1,2581.6,2.12]
[1727047274304,0.96819,2582.0,2581.6,2.12]
[1727047274505,2.12,2581.9,2581.1,3.2078]
[1727047274698,0.38738,2581.3,2581.1,3.2078]
[1727047274895,0.8778,2581.2,2581.1,3.59521]
[1727047275098,0.8778,2581.2,2581.1,5.71521]
[1727047275305,0.4238,2581.2,2581.1,5.71521]
[1727047275696,0.4238,2581.2,2581.1,5.3278]
[1727047275902,0.4238,2581.2,2581.1,2.12]
[1727047276107,0.4238,2581.2,2581.1,2.50741]
[1727047276499,0.4238,2581.2,2581.1,5.71521]
[1727047276792,0.4238,2581.2,2581.1,5.3278]
[1727047277201,0.4238,2581.2,2581.1,5.71521]
[1727047277402,0.4238,2581.2,2581.1,5.3278]
[1727047279203,0.96853,2581.1,2580.3,3.2078]
[1727047279406,0.96853,2581.1,2580.7,3.2078]
[1727047279407,1.36793,2581.1,2580.7,3.2078]
[1727047279707,0.38749,2580.6,2580.3,13.7802897]
[1727047279896,0.8577,2580.5,2580.3,5.71533]
[1727047280096,0.8577,2580.5,2580.4,0.38751]
[1727047280701,0.8577,2580.5,2580.3,5.71532]
[1727047281707,0.8577,2580.5,2580.3,2.50752]
[1727047282107,0.8577,2580.5,2580.4,0.38751]
[1727047282295,0.96856,2581.0,2580.6,0.38748]
[1727047282296,0.38743,2581.0,2580.6,0.38748]
[1727047282502,0.8305,2581.0,2580.7,2.12]
[1727047282901,0.38744,2580.9,2580.7,2.12]
[1727047283508,0.38745,2580.8,2580.7,2.12]
[1727047283707,0.38748,2580.7,2580.5,2.12]
[1727047284203,0.96864,2580.8,2580.3,5.3278]
[1727047284408,0.38751,2580.5,2580.3,5.3278]
[1727047284710,0.80711,2580.4,2580.3,2.12]
[1727047284911,0.80711,2580.4,2580.1,0.4294]
[1727047284912,1.23821,2580.4,2580.1,2.93695]
[1727047285302,1.23821,2580.4,2580.1,2.5494]
[1727047285712,1.23821,2580.4,2580.1,2.93695]
[1727047286099,0.8507,2580.4,2580.2,0.38754]
[1727047286502,1.23821,2580.4,2580.3,3.2078]
[1727047286710,1.23821,2580.4,2580.1,2.93695]
[1727047288410,1.23821,2580.4,2580.1,2.12]
[1727047288411,0.38754,2580.2,2580.1,2.12]
[1727047288607,0.8507,2580.4,2579.7,9.8007]
[1727047288608,0.38758,2580.0,2579.7,13.28541]
[1727047288915,0.38758,2580.0,2579.7,3.59541]
[1727047289111,0.8507,2580.4,2580.2,0.38754]
[1727047289410,0.4196,2580.4,2580.3,0.38753]
[1727047289614,0.4196,2580.4,2580.2,2.50754]
[1727047290816,0.4196,2580.4,2580.2,2.12]
[1727047291016,0.4196,2580.4,2580.3,0.38753]
[1727047292808,0.4196,2580.4,2580.2,2.50753]
[1727047293917,0.4196,2580.4,2580.3,0.38753]
[1727047294418,0.4196,2580.4,2580.2,2.50753]
[1727047296316,0.833,2580.8,2580.7,0.38747]
[1727047296508,0.4226,2580.8,2580.7,2.50747]
[1727047296909,0.4525,2580.9,2580.7,2.50747]
[1727047297216,0.4525,2580.9,2580.8,0.38745]
[1727047297622,0.4515,2581.1,2581.0,0.38742]
[1727047297919,0.4199,2581.3,2581.0,0.38742]
[1727047298806,0.4199,2581.3,2580.9,5.3278]
[1727047298807,0.4199,2581.3,2580.9,5.71523]
[1727047300517,1.01185972,2581.7,2581.2,5.3278]
[1727047300717,0.4254,2581.8,2581.6,2.12]
[1727047302924,0.8127,2581.8,2581.5,3.2078]
[1727047303129,0.38733,2581.7,2581.1,5.3831]
[1727047303325,0.4254,2581.8,2581.1,5.3831]
[1727047303326,0.4254,2581.8,2581.2,0.38738]
[1727047304720,0.4254,2581.8,2581.6,2.12]
[1727047304931,0.4254,2581.8,2581.4,5.3278]
[1727047305925,0.4254,2581.8,2581.4,5.71516]
[1727047306822,0.4254,2581.8,2581.5,0.38735]
[1727047307029,0.4254,2581.8,2581.4,5.3278]
[1727047307229,0.81271,2581.8,2581.4,3.2078]
[1727047307729,0.81271,2581.8,2581.4,3.59516]
[1727047308324,0.38732,2581.7,2581.2,2.12]
[1727047308527,0.38732,2581.7,2581.3,0.38737]
[1727047308831,0.81271,2581.8,2581.3,0.38737]
[1727047309227,0.81271,2581.8,2581.4,0.38736]
[1727047309726,0.4254,2581.8,2581.3,3.59517]
[1727047309927,0.38732,2581.7,2581.3,3.59517]
[1727047310129,0.38732,2581.7,2581.4,0.38736]
[1727047310530,0.4254,2581.8,2581.4,0.38736]
[1727047310531,0.81271,2581.8,2581.5,0.38734]
[1727047310832,0.38725,2582.2,2581.7,3.2078]
[1727047311031,0.83363,2582.3,2581.9,2.50728]
[1727047311628,0.4464,2582.3,2581.7,5.3278]
[1727047311825,0.4464,2582.3,2581.5,2.12]
[1727047312127,0.38727,2582.1,2581.7,0.38731]
[1727047312326,0.38727,2582.1,2581.8,0.3873]
[1727047312532,0.38727,2582.1,2581.7,2.50731]
[1727047312832,0.4464,2582.3,2581.8,0.3873]
[1727047313028,0.38726,2582.1,2581.8,0.3873]
[1727047313626,0.4464,2582.3,2581.7,2.50731]
[1727047313627,0.38728,2582.0,2581.7,2.50731]
[1727047313929,0.38729,2581.9,2581.6,0.38732]
[1727047314334,0.38729,2581.9,2581.7,0.38731]
[1727047314933,1.41451,2582.3,2581.4,0.38735]
[1727047314934,0.4326,2581.8,2581.4,0.38735]
[1727047315234,1.26643,2581.7,2581.5,0.38734]
[1727047315829,0.8791,2581.7,2581.1,0.4938]
[1727047316036,0.8791,2581.7,2581.3,0.38737]
[1727047316037,0.38735,2581.5,2581.3,0.38737]
[1727047316532,0.8791,2581.7,2581.1,0.4385]
[1727047316736,0.38738,2581.3,2581.1,0.3874]
[1727047316942,0.38737,2581.4,2581.2,0.38739]
[1727047317333,0.38737,2581.4,2581.0,5.3278]
[1727047317334,0.38734,2581.6,2581.0,5.3278]